[Event "EYCC Open U20 2021"]
[Site "Tornelo"]
[Date "2021.10.15"]
[Round "9.5"]
[White "Stoleriu, George"]
[Black "Tryggestad, Andreas Garberg"]
[Result "1-0"]
[ECO "B48"]
[WhiteElo "2373"]
[BlackElo "2268"]
[Annotator "ChessBase"]
[PlyCount "107"]
[EventDate "2021.10.15"]
[EventType "swiss"]
[EventCountry "NET"]
[SourceTitle "playchess.com"]
[Source "ChessBase"]
[SourceQuality "1"]
[TimeControl "5400+30"]

1. e4 {[%emt 0:00:30]} c5 {[%emt 0:00:37]} 2. Nf3 {[%emt 0:00:06]} e6 {[%emt 0:00:07]} 3. d4 {[%emt 0:00:05]} cxd4 {[%emt 0:00:04]} 4. Nxd4 {[%emt 0:00:03]} Nc6 {[%emt 0:00:03]} 5. Nc3 {[%emt 0:00:05]} Qc7 {[%emt 0:00:04]} 6. Be3 {[%emt 0:00:10]} Nf6 {[%emt 0:01:11]} 7. f4 {[%emt 0:00:11]} Bb4 {[%emt 0:00:44]} 8. Ndb5 {[%emt 0:00:05]} Qa5 {[%emt 0:00:10]} 9. e5 {[%emt 0:00:08]} Nd5 {[%emt 0:00:09]} 10. Bd2 {[%emt 0:00:05]} Nxc3 {[%emt 0:00:05]} 11. bxc3 {[%emt 0:00:07]} Be7 {[%emt 0:00:08]} 12. c4 {[%emt 0:00:06]} Bb4 {[%emt 0:07:30]} 13. Bxb4 {[%emt 0:10:35]} Qxb4+ {[%emt 0:00:57]} 14. c3 {[%emt 0:00:08]} Qa5 {[%emt 0:00:05]} 15. Nd6+ {[%emt 0:02:03]} Ke7 {[%emt 0:06:10]} 16. Rc1 {[%emt 0:10:01]} f6 {[%emt 0:11:19]} 17. Qg4 {[%emt 0:03:15]} fxe5 {[%emt 0:10:02]} 18. Qxg7+ {[%emt 0:02:06]} Kxd6 {[%emt 0:00:15]} 19. Qxh8 {[%emt 0:00:05]} exf4 {[%emt 0:00:03]} 20. Qf8+ {[%emt 0:02:13]} Kc7 {[%emt 0:01:55]} 21. Qxf4+ {[%emt 0:03:33]} d6 {[%emt 0:00:05]} 22. Bd3 {[%emt 0:02:26]} Ne5 {[%emt 0:12:16]} 23. Bxh7 {[%emt 0:01:03]} Bd7 {[%emt 0:05:24]} 24. O-O {[%emt 0:01:23]} b6 {[%emt 0:04:47]} 25. Qd4 {[%emt 0:07:12]} Rh8 {[%emt 0:02:57]} 26. Be4 {[%emt 0:02:10]} Rh4 {[%emt 0:01:59]} 27. g3 {[%emt 0:02:37]} Rg4 {[%emt 0:00:07]} 28. Rcd1 {[%emt 0:02:03]} Qa3 {[%emt 0:02:42]} 29. Rf4 {[%emt 0:01:04]} Rg8 {[%emt 0:02:53]} 30. Bg2 {[%emt 0:04:41]} Rh8 {[%emt 0:03:31]} 31. Rf2 {[%emt 0:03:25]} Ba4 {[%emt 0:02:03]} 32. Re1 {[%emt 0:02:39]} Qc5 {[%emt 0:03:01]} 33. Qxc5+ {[%emt 0:02:57]} bxc5 {[%emt 0:00:21]} 34. Rb2 {[%emt 0:01:34]} Bc6 {[%emt 0:00:38]} 35. Rxe5 {[%emt 0:03:33]} dxe5 {[%emt 0:00:07]} 36. Bxc6 {[%emt 0:00:05]} Kxc6 {[%emt 0:00:03]} 37. Rd2 {[%emt 0:00:44]} a5 {[%emt 0:01:40]} 38. a4 {[%emt 0:00:25]} e4 {[%emt 0:02:06]} 39. h4 {[%emt 0:01:25]} e3 {[%emt 0:04:14]} 40. Rd3 {[%emt 0:02:16]} Rg8 {[%emt 0:02:42]} 41. Kg2 {[%emt 0:04:20]} Rg4 {[%emt 0:01:46]} 42. Rxe3 {[%emt 0:03:24]} Kd6 {[%emt 0:00:04]} 43. Kh3 {[%emt 0:03:36]} Rxc4 {[%emt 0:00:19]} 44. h5 {[%emt 0:00:14]} Ke7 {[%emt 0:05:08]} 45. h6 {[%emt 0:03:12]} Kf7 {[%emt 0:00:28]} 46. Rxe6 {[%emt 0:00:09]} Rxc3 {[%emt 0:00:11]} 47. Rc6 {[%emt 0:00:43]} Rc1 {[%emt 0:02:47]} 48. Kh4 {[%emt 0:00:21]} c4 {[%emt 0:00:21]} 49. Kg5 {[%emt 0:00:26]} Rd1 {[%emt 0:04:09]} 50. Rc7+ {[%emt 0:00:27]} Kg8 {[%emt 0:00:08]} 51. g4 {[%emt 0:00:35]} Rd5+ {[%emt 0:00:51]} 52. Kg6 {[%emt 0:00:07]} Rd6+ {[%emt 0:00:57]} 53. Kh5 {[%emt 0:00:03]} Rd4 {[%emt 0:00:42]} 54. g5 {[%emt 0:00:06]} 1-0

[Event "EYCC Open U20 2021"]
[Site "Tornelo"]
[Date "2021.10.15"]
[Round "9.6"]
[White "Rozen, Eytan"]
[Black "Koelle, Tobias"]
[Result "1/2-1/2"]
[ECO "D11"]
[WhiteElo "2386"]
[BlackElo "2393"]
[Annotator "ChessBase"]
[PlyCount "142"]
[EventDate "2021.10.15"]
[EventType "swiss"]
[EventCountry "NET"]
[SourceTitle "playchess.com"]
[Source "ChessBase"]
[SourceQuality "1"]
[TimeControl "5400+30"]

1. d4 {[%emt 0:00:30]} Nf6 {[%emt 0:00:37]} 2. Nf3 {[%emt 0:00:08]} d5 {[%emt 0:00:19]} 3. g3 {[%emt 0:00:05]} Bf5 {[%emt 0:03:47]} 4. Bg2 {[%emt 0:00:08]} e6 {[%emt 0:00:07]} 5. O-O {[%emt 0:00:06]} Be7 {[%emt 0:00:16]} 6. c4 {[%emt 0:00:12]} c6 {[%emt 0:01:05]} 7. Nbd2 {[%emt 0:00:33]} h6 {[%emt 0:00:34]} 8. b3 {[%emt 0:00:08]} O-O {[%emt 0:00:09]} 9. Bb2 {[%emt 0:00:06]} Ne4 {[%emt 0:03:16]} 10. a3 {[%emt 0:00:20]} Nd7 {[%emt 0:00:10]} 11. Nxe4 {[%emt 0:00:27]} Bxe4 {[%emt 0:00:34]} 12. Nd2 {[%emt 0:00:08]} Bxg2 {[%emt 0:00:17]} 13. Kxg2 {[%emt 0:00:03]} Nf6 {[%emt 0:03:07]} 14. Re1 {[%emt 0:00:16]} Qc7 {[%emt 0:03:15]} 15. e4 {[%emt 0:00:11]} dxe4 {[%emt 0:00:07]} 16. Nxe4 {[%emt 0:00:05]} Rad8 {[%emt 0:01:41]} 17. Qc2 {[%emt 0:05:29]} Nxe4 {[%emt 0:00:40]} 18. Rxe4 {[%emt 0:01:03]} Bf6 {[%emt 0:00:31]} 19. b4 {[%emt 0:01:58]} Rd7 {[%emt 0:02:03]} 20. Rae1 {[%emt 0:02:23]} Rfd8 {[%emt 0:03:23]} 21. d5 {[%emt 0:00:25]} cxd5 {[%emt 0:09:35]} 22. Bxf6 {[%emt 0:00:06]} dxe4 {[%emt 0:03:46]} 23. Bxd8 {[%emt 0:00:09]} Rxd8 {[%emt 0:00:23]} 24. Qxe4 {[%emt 0:00:09]} g6 {[%emt 0:05:56]} 25. h4 {[%emt 0:01:58]} h5 {[%emt 0:00:17]} 26. Re3 {[%emt 0:00:45]} a6 {[%emt 0:04:23]} 27. Rd3 {[%emt 0:05:55]} Ra8 {[%emt 0:04:05]} 28. c5 {[%emt 0:01:28]} Re8 {[%emt 0:14:00]} 29. Rd6 {[%emt 0:02:15]} Re7 {[%emt 0:01:51]} 30. Qd4 {[%emt 0:08:13]} Kh7 {[%emt 0:01:29]} 31. f4 {[%emt 0:07:25]} Qc8 {[%emt 0:03:44]} 32. Kg1 {[%emt 0:05:03]} e5 {[%emt 0:00:34]} 33. fxe5 {[%emt 0:00:25]} Qf5 {[%emt 0:01:58]} 34. Rf6 {[%emt 0:06:10]} Qb1+ {[%emt 0:00:12]} 35. Kg2 {[%emt 0:02:43]} Qe1 {[%emt 0:04:58]} 36. Rf2 {[%emt 0:02:40]} Qb1 {[%emt 0:02:17]} 37. Qd5 {[%emt 0:06:26]} Kg7 {[%emt 0:00:08]} 38. c6 {[%emt 0:12:07]} bxc6 {[%emt 0:00:07]} 39. Qxc6 {[%emt 0:00:07]} Kg8 {[%emt 0:00:30]} 40. Qxa6 {[%emt 0:03:40]} Qe4+ {[%emt 0:00:10]} 41. Kh2 {[%emt 0:00:05]} Rxe5 {[%emt 0:00:45]} 42. Qf6 {[%emt 0:00:38]} Qd5 {[%emt 0:01:05]} 43. b5 {[%emt 0:01:10]} Re1 {[%emt 0:00:55]} 44. Qf3 {[%emt 0:00:05]} Qe6 {[%emt 0:00:24]} 45. a4 {[%emt 0:00:57]} Ra1 {[%emt 0:00:42]} 46. Re2 {[%emt 0:08:55]} Ra2 {[%emt 0:00:49]} 47. Qa8+ {[%emt 0:01:25]} Kh7 {[%emt 0:00:17]} 48. Rg2 {[%emt 0:01:46]} Ra1 {[%emt 0:00:49]} 49. Rf2 {[%emt 0:01:02]} Ra2 {[%emt 0:04:47]} 50. Qf3 {[%emt 0:01:22]} Rxa4 {[%emt 0:00:28]} 51. Qxf7+ {[%emt 0:00:29]} Qxf7 {[%emt 0:00:07]} 52. Rxf7+ {[%emt 0:00:03]} Kh6 {[%emt 0:01:54]} 53. b6 {[%emt 0:10:49]} Rb4 {[%emt 0:00:08]} 54. b7 {[%emt 0:02:02]} Rb2+ {[%emt 0:01:21]} 55. Kg1 {[%emt 0:00:27]} g5 {[%emt 0:00:15]} 56. Kf1 {[%emt 0:00:58]} gxh4 {[%emt 0:00:24]} 57. gxh4 {[%emt 0:00:05]} Kg6 {[%emt 0:00:08]} 58. Rc7 {[%emt 0:00:48]} Kf5 {[%emt 0:00:15]} 59. Rg7 {[%emt 0:01:07]} Kf6 {[%emt 0:00:14]} 60. Rh7 {[%emt 0:00:06]} Kg6 {[%emt 0:00:10]} 61. Rc7 {[%emt 0:00:25]} Kf5 {[%emt 0:00:13]} 62. Ke1 {[%emt 0:00:04]} Kg4 {[%emt 0:00:09]} 63. Kd1 {[%emt 0:00:07]} Kxh4 {[%emt 0:00:13]} 64. Kc1 {[%emt 0:00:06]} Rb6 {[%emt 0:00:11]} 65. Kc2 {[%emt 0:01:07]} Kg4 {[%emt 0:03:06]} 66. Kc3 {[%emt 0:00:08]} h4 {[%emt 0:00:41]} 67. Rc4+ {[%emt 0:00:08]} Kf3 {[%emt 0:00:12]} 68. Rb4 {[%emt 0:00:08]} Rxb7 {[%emt 0:00:06]} 69. Rxb7 {[%emt 0:00:06]} h3 {[%emt 0:00:05]} 70. Rh7 {[%emt 0:00:05]} Kg2 {[%emt 0:00:17]} 71. Rxh3 {[%emt 0:00:33]} Kxh3 {[%emt 0:00:08]} 1/2-1/2

[Event "EYCC Open U20 2021"]
[Site "Tornelo"]
[Date "2021.10.15"]
[Round "9.7"]
[White "Ibrahimli, Murad"]
[Black "Ben Ari, Yannay"]
[Result "0-1"]
[ECO "D02"]
[WhiteElo "2435"]
[BlackElo "2416"]
[Annotator "ChessBase"]
[PlyCount "84"]
[EventDate "2021.10.15"]
[EventType "swiss"]
[EventCountry "NET"]
[SourceTitle "playchess.com"]
[Source "ChessBase"]
[SourceQuality "1"]
[TimeControl "5400+30"]

1. Nf3 {[%emt 0:00:30]} d5 {[%emt 0:04:42]} 2. g3 {[%emt 0:00:05]} Nc6 {[%emt 0:04:32]} 3. d4 {[%emt 0:00:15]} Bf5 {[%emt 0:00:06]} 4. c3 {[%emt 0:00:31]} Qd7 {[%emt 0:03:11]} 5. Qa4 {[%emt 0:01:13]} e6 {[%emt 0:06:07]} 6. Bg2 {[%emt 0:00:14]} h5 {[%emt 0:01:59]} 7. Nbd2 {[%emt 0:01:47]} Be7 {[%emt 0:08:32]} 8. b4 {[%emt 0:00:57]} a6 {[%emt 0:06:33]} 9. h3 {[%emt 0:05:03]} Nf6 {[%emt 0:02:47]} 10. Qd1 {[%emt 0:09:00]} Bd6 {[%emt 0:06:28]} 11. a4 {[%emt 0:07:42]} Qe7 {[%emt 0:12:23]} 12. Bb2 {[%emt 0:05:05]} Ne4 {[%emt 0:01:27]} 13. e3 {[%emt 0:02:05]} Qf6 {[%emt 0:05:43]} 14. Nxe4 {[%emt 0:03:37]} Bxe4 {[%emt 0:00:42]} 15. O-O {[%emt 0:01:24]} e5 {[%emt 0:07:54]} 16. c4 {[%emt 0:03:35]} Bxf3 {[%emt 0:18:43]} 17. Bxf3 {[%emt 0:00:26]} e4 {[%emt 0:05:03]} 18. Bg2 {[%emt 0:00:11]} Nxb4 {[%emt 0:00:27]} 19. c5 {[%emt 0:04:01]} Be7 {[%emt 0:00:05]} 20. Qb3 {[%emt 0:00:04]} a5 {[%emt 0:00:32]} 21. Bc3 {[%emt 0:02:30]} Qc6 {[%emt 0:00:06]} 22. f3 {[%emt 0:00:26]} f5 {[%emt 0:01:28]} 23. fxe4 {[%emt 0:00:04]} fxe4 {[%emt 0:00:04]} 24. Bxb4 {[%emt 0:01:01]} axb4 {[%emt 0:00:05]} 25. Rf5 {[%emt 0:00:02]} O-O-O {[%emt 0:00:30]} 26. Qxb4 {[%emt 0:00:52]} g6 {[%emt 0:00:55]} 27. Rf2 {[%emt 0:01:54]} h4 {[%emt 0:00:19]} 28. g4 {[%emt 0:00:59]} Bg5 {[%emt 0:01:24]} 29. Qb3 {[%emt 0:00:36]} Rhf8 {[%emt 0:00:12]} 30. Raf1 {[%emt 0:00:04]} Rxf2 {[%emt 0:01:15]} 31. Rxf2 {[%emt 0:00:04]} Qa6 {[%emt 0:00:24]} 32. Bf1 {[%emt 0:00:29]} Qa7 {[%emt 0:00:56]} 33. Rf7 {[%emt 0:00:34]} c6 {[%emt 0:00:06]} 34. Rg7 {[%emt 0:00:48]} Qb8 {[%emt 0:01:02]} 35. Bg2 {[%emt 0:01:09]} Rd7 {[%emt 0:00:46]} 36. Rxg6 {[%emt 0:00:48]} Bd8 {[%emt 0:00:03]} 37. Qc2 {[%emt 0:07:27]} Rf7 {[%emt 0:00:04]} 38. Qe2 {[%emt 0:05:03]} Qg3 {[%emt 0:00:06]} 39. Rg8 {[%emt 0:01:12]} Kd7 {[%emt 0:01:00]} 40. Rxd8+ {[%emt 0:00:24]} Kxd8 {[%emt 0:00:04]} 41. Qd2 {[%emt 0:00:47]} Ke8 {[%emt 0:00:31]} 42. a5 {[%emt 0:01:29]} Kf8 {[%emt 0:00:24]} 0-1

[Event "EYCC Open U20 2021"]
[Site "Tornelo"]
[Date "2021.10.15"]
[Round "9.8"]
[White "Kalogridis, Antonios"]
[Black "Pliukha, Myhajlo"]
[Result "1-0"]
[ECO "E48"]
[WhiteElo "2275"]
[BlackElo "2217"]
[Annotator "ChessBase"]
[PlyCount "111"]
[EventDate "2021.10.15"]
[EventType "swiss"]
[EventCountry "NET"]
[SourceTitle "playchess.com"]
[Source "ChessBase"]
[SourceQuality "1"]
[TimeControl "5400+30"]

1. d4 {[%emt 0:00:30]} Nf6 {[%emt 0:00:33]} 2. c4 {[%emt 0:00:06]} e6 {[%emt 0:00:04]} 3. Nc3 {[%emt 0:00:02]} Bb4 {[%emt 0:00:03]} 4. e3 {[%emt 0:00:03]} O-O {[%emt 0:00:08]} 5. Bd3 {[%emt 0:00:08]} Re8 {[%emt 0:00:24]} 6. Nge2 {[%emt 0:06:45]} d5 {[%emt 0:00:13]} 7. O-O {[%emt 0:01:42]} b6 {[%emt 0:01:02]} 8. Ng3 {[%emt 0:06:40]} dxc4 {[%emt 0:08:40]} 9. Bxc4 {[%emt 0:00:23]} Bb7 {[%emt 0:00:08]} 10. Qe2 {[%emt 0:00:47]} Nbd7 {[%emt 0:09:19]} 11. Rd1 {[%emt 0:02:59]} Qe7 {[%emt 0:06:06]} 12. e4 {[%emt 0:07:59]} c5 {[%emt 0:04:03]} 13. e5 {[%emt 0:04:17]} Nd5 {[%emt 0:00:09]} 14. Nce4 {[%emt 0:02:07]} cxd4 {[%emt 0:02:31]} 15. a3 {[%emt 0:01:14]} Bc5 {[%emt 0:02:52]} 16. b4 {[%emt 0:03:46]} Nxe5 {[%emt 0:20:44]} 17. bxc5 {[%emt 0:01:40]} bxc5 {[%emt 0:00:47]} 18. Bxd5 {[%emt 0:13:11]} exd5 {[%emt 0:02:08]} 19. Nf5 {[%emt 0:02:21]} Qe6 {[%emt 0:00:09]} 20. Neg3 {[%emt 0:03:20]} Ba6 {[%emt 0:01:37]} 21. Qc2 {[%emt 0:01:19]} Bd3 {[%emt 0:18:24]} 22. Rxd3 {[%emt 0:02:45]} Nxd3 {[%emt 0:00:04]} 23. Qxd3 {[%emt 0:00:12]} Qe1+ {[%emt 0:00:16]} 24. Nf1 {[%emt 0:00:55]} Qc3 {[%emt 0:00:03]} 25. Qxc3 {[%emt 0:00:35]} dxc3 {[%emt 0:00:03]} 26. Bf4 {[%emt 0:06:37]} Re4 {[%emt 0:01:55]} 27. Bd6 {[%emt 0:00:18]} d4 {[%emt 0:01:18]} 28. Bxc5 {[%emt 0:00:18]} d3 {[%emt 0:00:05]} 29. Bb4 {[%emt 0:05:22]} Rc4 {[%emt 0:05:07]} 30. N1e3 {[%emt 0:01:26]} a5 {[%emt 0:05:41]} 31. Nxc4 {[%emt 0:01:27]} axb4 {[%emt 0:00:04]} 32. Ne7+ {[%emt 0:00:04]} Kf8 {[%emt 0:00:14]} 33. Nd5 {[%emt 0:00:05]} b3 {[%emt 0:03:46]} 34. Nxc3 {[%emt 0:01:45]} Rc8 {[%emt 0:00:27]} 35. Nd2 {[%emt 0:03:11]} Rxc3 {[%emt 0:01:43]} 36. Rb1 {[%emt 0:00:06]} Ke7 {[%emt 0:01:33]} 37. Nxb3 {[%emt 0:01:24]} Ke6 {[%emt 0:00:08]} 38. a4 {[%emt 0:02:14]} Kd5 {[%emt 0:00:14]} 39. a5 {[%emt 0:00:17]} Kc4 {[%emt 0:00:30]} 40. Nd2+ {[%emt 0:00:05]} Kd4 {[%emt 0:00:01]} 41. Ra1 {[%emt 0:00:54]} Rc8 {[%emt 0:00:03]} 42. a6 {[%emt 0:01:23]} Ra8 {[%emt 0:00:06]} 43. a7 {[%emt 0:00:16]} Kc3 {[%emt 0:00:02]} 44. Ra2 {[%emt 0:00:06]} f5 {[%emt 0:00:29]} 45. f4 {[%emt 0:00:22]} h6 {[%emt 0:00:16]} 46. h4 {[%emt 0:00:20]} g6 {[%emt 0:00:13]} 47. Kf2 {[%emt 0:00:07]} h5 {[%emt 0:00:05]} 48. g3 {[%emt 0:00:57]} Kd4 {[%emt 0:00:25]} 49. Ra3 {[%emt 0:00:05]} Kc5 {[%emt 0:00:37]} 50. Ke3 {[%emt 0:00:13]} Kb4 {[%emt 0:00:21]} 51. Rb3+ {[%emt 0:00:07]} Kc5 {[%emt 0:00:05]} 52. Rb7 {[%emt 0:00:04]} Kc6 {[%emt 0:00:14]} 53. Rg7 {[%emt 0:00:05]} Rd8 {[%emt 0:00:02]} 54. Rxg6+ {[%emt 0:00:07]} Kc5 {[%emt 0:00:02]} 55. Ra6 {[%emt 0:00:09]} Ra8 {[%emt 0:00:07]} 56. Kxd3 {[%emt 0:00:04]} 1-0